bitfinex/quotes_SOLUSD_20220302
["timestamp","ask_amount","ask_price","bid_price","bid_amount"]
[1646239903570,47.12045365,101.97,101.9,0.25]
[1646239903770,47.12045365,101.97,101.89,14.9744]
[1646239904169,61.84655365,101.97,101.89,14.9744]
[1646239904372,63.1790535,101.97,101.89,14.9744]
[1646239904772,63.1790535,101.97,101.89,59.67682383]
[1646239906479,63.1790535,101.97,101.89,14.9744]
[1646239906674,14.7291,101.95,101.86,15.654]
[1646239906874,22.6449,101.94,101.86,15.904]
[1646239907277,22.6449,101.94,101.86,4.174]
[1646239907674,22.6449,101.94,101.87,51.66686771]
[1646239909177,22.6449,101.94,101.87,149.93686771]
[1646239909802,22.6449,101.94,101.87,51.91686771]
[1646239910001,22.6449,101.94,101.87,66.64496771]
[1646239911304,22.6449,101.94,101.87,164.66496771]
[1646239911504,22.6449,101.94,101.87,66.64496771]
[1646239912307,22.6449,101.94,101.87,164.66496771]
[1646239912505,22.6449,101.94,101.87,235.06496771]
[1646239915208,1.33249985,101.97,101.87,235.06496771]
[1646239915409,23.047,101.97,101.87,238.98896771]
[1646239915809,44.89084453,101.97,101.87,238.98896771]
[1646239917309,44.89084453,101.97,101.87,235.06496771]
[1646239919810,63.54084453,101.97,101.87,176.39496771]
[1646239920012,66.5586535,101.97,101.87,176.39496771]
[1646239920510,66.5586535,101.97,101.87,199.69396771]
[1646239920713,1.33249985,101.96,101.87,101.67396771]
[1646239921211,23.17634438,101.96,101.87,101.67396771]
[1646239921416,21.84384453,101.96,101.87,101.67396771]
[1646239921812,21.84384453,101.96,101.87,199.69396771]
[1646239922013,36.57144453,101.96,101.87,199.69396771]
[1646239922215,37.90394438,101.96,101.87,101.92396771]
[1646239923014,37.90394438,101.96,101.87,199.94396771]
[1646239924514,41.82794438,101.96,101.87,199.94396771]
[1646239925316,41.82794438,101.96,101.87,101.92396771]
[1646239926216,41.82794438,101.96,101.87,78.12496771]
[1646239926415,16.41430912,101.95,101.87,51.66686771]
[1646239926816,17.74680897,101.95,101.87,51.66686771]
[1646239927018,24.4174,101.94,101.87,51.66686771]
[1646239927618,24.4174,101.94,101.87,51.91686771]
[1646239927816,24.4174,101.94,101.87,51.66686771]
[1646239928116,40.83300912,101.94,101.87,51.66686771]
[1646239929317,39.1477,101.94,101.87,51.66686771]
[1646239929518,39.1477,101.94,101.87,51.91686771]
[1646239931718,43.0717,101.94,101.87,51.91686771]
[1646239932621,43.0717,101.94,101.87,51.66686771]
[1646239933518,39.1477,101.94,101.87,51.66686771]
[1646239933920,43.0717,101.94,101.87,51.66686771]
[1646239935119,43.0717,101.94,101.87,51.91686771]
[1646239937131,43.0717,101.94,101.87,149.93686771]
[1646239937323,24.4174,101.94,101.87,223.33446771]
[1646239937523,1.33249985,101.96,101.89,150.62988308]
[1646239937725,26.22129985,101.97,101.89,52.85988308]
[1646239937926,24.8888,101.97,101.89,64.58988308]
[1646239938823,26.57410912,101.97,101.89,79.31348308]
[1646239939024,48.41795365,101.97,101.89,79.31348308]
[1646239939623,49.7504535,101.97,101.89,79.31348308]
[1646239940025,48.41795365,101.97,101.89,79.31348308]
[1646239940725,62.21623796,101.97,101.89,67.58348308]
[1646239940926,80.85843796,101.97,101.89,52.85988308]
[1646239941124,67.46473781,101.97,101.87,50.5931]
[1646239941325,69.28107262,101.97,101.86,3.924]
[1646239941529,1.33249985,101.96,101.86,3.924]
[1646239941724,3.918,101.95,101.86,3.924]
[1646239942025,29.45279365,101.95,101.86,3.924]
[1646239942225,40.26519365,101.94,101.87,44.56970708]
[1646239942629,23.1243,101.93,101.87,44.81970708]
[1646239943025,23.1243,101.93,101.87,44.56970708]
[1646239943244,23.1243,101.93,101.87,44.81970708]
[1646239943443,23.1243,101.93,101.87,59.54740708]
[1646239944345,23.1243,101.93,101.87,157.56740708]
[1646239944545,39.33307796,101.96,101.87,227.96740708]
[1646239944747,61.91077796,101.96,101.87,227.96740708]
[1646239944947,60.22546884,101.96,101.87,227.96740708]
[1646239945147,46.42718453,101.96,101.87,227.96740708]
[1646239948149,23.84948453,101.96,101.87,227.96740708]
[1646239948351,23.84948453,101.96,101.87,230.51644711]
[1646239948550,23.84948453,101.96,101.9,64.54870872]
[1646239948750,23.84948453,101.96,101.9,64.79870872]
[1646239950452,38.49548453,101.98,101.9,233.21870872]
[1646239954553,38.49548453,101.98,101.9,135.19870872]
[1646239954758,38.49548453,101.98,101.9,76.52870872]
[1646239954955,22.6987,101.97,101.9,76.52870872]
[1646239956357,46.54818453,101.97,101.9,76.52870872]
[1646239956657,46.54818453,101.97,101.9,76.27870872]
[1646239958056,46.54818453,101.97,101.9,76.52870872]
[1646239958458,46.54818453,101.97,101.9,233.21870872]
[1646239958661,22.6987,101.97,101.9,233.21870872]
[1646239959858,14.646,101.98,101.9,233.21870872]
[1646239960858,14.646,101.98,101.94,98.02]
[1646239961060,29.93039985,102.01,101.95,48.53079832]
[1646239961261,24.6749,102.01,101.95,48.78079832]
[1646239962460,142.5912,102.03,101.95,205.47079832]
[1646239962663,142.5912,102.03,101.95,217.20079832]
[1646239963160,24.6912,102.03,101.95,224.29179832]
[1646239963764,24.6912,102.03,101.95,239.00779832]
[1646239963966,23.8863,102.02,101.95,82.31779832]
[1646239964162,23.8863,102.02,101.95,75.22679832]
[1646239965065,23.8863,102.02,101.95,75.20010705]
[1646239965563,23.8863,102.02,101.95,173.22010705]
[1646239966363,23.8863,102.02,101.95,75.20010705]
[1646239968767,23.8863,102.02,101.95,74.95010705]
[1646239969368,25.57170711,102.02,101.95,74.95010705]
[1646239969767,25.57170711,102.02,101.95,11.73]
[1646239969969,25.57170711,102.02,101.94,24.6377]
[1646239970167,25.57170711,102.02,101.94,24.8877]
[1646239970367,29.49370711,102.02,101.94,24.8877]
[1646239970969,40.29040711,102.02,101.95,43.7774149]
[1646239971576,40.29040711,102.02,101.95,44.0274149]
[1646239972469,25.57170711,102.02,101.95,44.0274149]
[1646239974374,25.57170711,102.02,101.94,51.0847]
[1646239974673,25.57170711,102.02,101.94,39.6047]
[1646239974874,29.49370711,102.02,101.94,39.6047]
[1646239975278,29.49370711,102.02,101.94,102.59874724]
[1646239978001,25.57170711,102.02,101.94,102.59874724]
[1646239978502,40.29060711,102.02,101.94,51.51404724]
[1646239978701,44.21260711,102.02,101.94,0.25]
[1646239978902,31.19129333,102.02,101.92,0.25]
[1646239979102,32.52379318,102.02,101.91,15.902]
[1646239979502,14.7216,102.0,101.91,30.6231]
[1646239979703,23.838,101.99,101.92,44.44858136]
[1646239980004,23.838,101.99,101.92,44.69858136]
[1646239980801,23.838,101.99,101.92,59.41828136]
[1646239982806,23.838,101.99,101.92,157.43828136]
[1646239983007,23.838,101.99,101.92,216.10828136]
[1646239983207,3.922,102.02,101.92,227.83828136]
[1646239983407,23.4631,102.02,101.92,230.38732139]
[1646239983607,40.74199985,102.03,101.92,230.38732139]
[1646239983608,26.02369985,102.03,101.94,98.02]
[1646239983809,24.6912,102.03,101.96,14.7133]
[1646239984006,24.6912,102.03,101.96,14.9633]
[1646239985008,24.6912,102.03,101.96,71.6549587]
[1646239986211,1.33249985,102.05,101.98,156.69]
[1646239986410,48.68769985,102.08,101.99,183.38758412]
[1646239986609,48.68769985,102.08,101.99,183.63758412]
[1646239986610,47.3552,102.08,101.99,183.63758412]
[1646239987010,48.68769985,102.08,101.99,85.61758412]
[1646239987312,14.7131,102.06,101.99,0.25]
[1646239987614,24.3314,102.05,101.97,51.1289]
[1646239988211,24.3314,102.05,101.97,104.18017453]
[1646239990317,24.3314,102.05,101.97,202.20017453]
[1646239991818,24.3314,102.05,101.97,260.87017453]
[1646239992017,24.3314,102.05,101.98,2.54904003]
[1646239992216,24.3314,102.05,101.99,81.46190598]
[1646239992417,24.3314,102.05,101.99,81.71190598]
[1646239995219,24.29306437,102.05,101.99,81.71190598]
[1646239996227,24.29306437,102.05,101.99,238.40190598]
[1646239996421,24.0418,102.08,101.99,238.40190598]
[1646239996622,24.0418,102.08,102.01,71.9443432]
[1646239996821,24.0418,102.08,102.01,181.9443432]
[1646239997023,24.0418,102.08,102.01,184.49338323]
[1646239997522,23.4073,102.1,102.01,243.16338323]
[1646239998322,23.4073,102.1,102.04,14.7021]
[1646239998523,23.4073,102.1,102.05,57.21350858]
[1646239998723,23.4073,102.1,102.05,155.48350858]
[1646239998924,23.4073,102.1,102.05,167.21350858]
[1646239999122,23.7974,102.12,102.05,167.21350858]
[1646239999723,23.7974,102.12,102.05,181.91410858]
[1646240000129,23.7974,102.12,102.05,240.58410858]
[1646240001726,24.1916,102.13,102.05,247.05114861]
[1646240002128,24.1916,102.13,102.08,168.58262585]
[1646240002328,24.1916,102.13,102.09,11.73]
[1646240002528,24.1916,102.13,102.1,56.84305576]
[1646240002727,23.3784,102.17,102.1,155.11305576]
[1646240002930,46.2043,102.17,102.12,56.8061681]
[1646240003731,46.2043,102.17,102.1,11.98]
[1646240004731,46.2043,102.17,102.1,56.6540547]
[1646240006032,46.2043,102.17,102.1,11.73]
[1646240006234,51.81235153,102.17,102.06,5.0]
[1646240006432,17.61395913,102.16,102.02,3.916]
[1646240006631,4.3142063,102.15,102.03,11.73]
[1646240006831,20.58545478,102.15,102.03,11.73]
[1646240007031,17.61395913,102.14,102.04,48.32993328]
[1646240007232,59.05007395,102.14,102.04,48.32993328]
[1646240007432,16.39505153,102.13,102.04,48.32993328]
[1646240007632,31.47684225,102.13,102.04,48.57993328]
[1646240007831,1.69205153,102.12,102.04,48.57993328]
[1646240008450,1.69205153,102.12,102.02,15.648]
[1646240008635,17.91340912,102.12,102.01,18.6241]
[1646240008838,55.70827433,102.12,102.01,14.7061]
[1646240009036,1.69205153,102.11,102.0,15.649]
[1646240009434,16.78826435,102.11,102.01,50.85959115]
[1646240009636,14.709,102.09,102.01,50.85959115]
[1646240010236,14.709,102.09,102.01,51.10959115]
[1646240011236,14.709,102.09,102.01,50.85959115]
[1646240011637,18.628,102.09,102.01,50.85959115]
[1646240013442,44.38101282,102.11,102.01,65.56669115]
[1646240013942,46.07306435,102.11,102.01,65.56669115]
[1646240014141,46.07306435,102.11,102.01,65.81669115]
[1646240014941,46.07306435,102.11,102.01,77.54669115]
[1646240015141,44.45181674,102.11,102.01,77.54669115]
[1646240015342,44.45181674,102.11,102.01,62.58959115]
[1646240015543,63.8236038,102.11,102.01,50.85959115]
[1646240015741,14.7114,102.07,101.98,109.75]
[1646240016844,14.7114,102.07,101.99,44.45083087]
[1646240017044,14.7114,102.07,101.99,44.70083087]
[1646240017243,14.7114,102.07,101.98,11.73]
[1646240017444,1.69205153,102.06,101.98,0.25]
[1646240017644,1.69205153,102.09,101.98,15.9]
[1646240017844,3.92,102.08,101.98,11.98]
[1646240018045,4.3162063,102.08,101.98,11.98]
[1646240018265,1.69205153,102.07,101.99,50.85364952]
[1646240019054,14.7132,102.06,101.98,11.73]
[1646240019248,24.18349876,102.08,101.97,11.73]
[1646240019447,48.45862918,102.07,101.97,11.73]
[1646240019648,3.92,102.06,101.97,11.73]
[1646240020050,16.41312918,102.05,101.98,50.24342485]
[1646240020251,16.41312918,102.05,101.96,11.73]
[1646240020649,14.7147,102.05,101.96,11.98]
[1646240021251,14.7147,102.05,101.97,55.09905358]
[1646240021452,14.7147,102.05,101.97,70.06215358]
[1646240022051,14.7147,102.05,101.97,14.7131]
[1646240022255,49.0598,102.05,101.94,15.65]
[1646240022458,3.92,102.04,101.94,11.73]
[1646240022652,3.92,102.04,101.93,14.718]
[1646240022854,30.10322918,102.04,101.93,26.448]
[1646240023057,52.18702164,102.04,101.93,82.47603977]
[1646240023256,53.93725493,102.04,101.93,56.02803977]
[1646240023655,66.15400068,102.04,101.93,56.02803977]
[1646240024056,14.7218,102.0,101.93,56.02803977]
[1646240024455,14.7218,102.0,101.93,56.27803977]
[1646240025256,69.7867,102.02,101.93,56.27803977]
[1646240025769,64.7867,102.02,101.93,56.27803977]
[1646240025970,46.145,102.02,101.93,56.27803977]
[1646240027070,14.7203,102.01,101.93,56.27803977]
[1646240027271,67.8576606,102.02,101.93,56.27803977]
[1646240027473,1.69842918,102.01,101.93,56.27803977]
[1646240027872,66.15923142,102.02,101.93,56.27803977]
[1646240028073,67.8576606,102.02,101.93,56.27803977]
[1646240029074,14.7216,102.0,101.93,56.27803977]
[1646240029274,62.23652918,102.02,101.93,56.27803977]
[1646240029478,60.5381,102.02,101.93,56.27803977]
[1646240030076,14.7218,102.0,101.93,56.02803977]
[1646240031078,14.7218,102.0,101.9,26.4518]
[1646240031280,14.7254,101.98,101.89,5.0]
[1646240031478,14.7254,101.98,101.88,26.4544]
[1646240031678,16.42382918,101.98,101.88,26.4544]
[1646240032080,1.69842918,101.98,101.88,26.4544]
[1646240032278,1.69842918,101.98,101.89,57.46732271]
[1646240033079,14.726,101.97,101.89,57.46732271]
[1646240033482,18.65,101.97,101.89,57.46732271]
[1646240034283,14.7276,101.96,101.89,57.46732271]
[1646240034684,20.34570744,101.96,101.89,57.46732271]
[1646240034882,1.69410744,101.96,101.89,57.46732271]
[1646240035882,3.924,101.95,101.89,57.46732271]
[1646240036082,18.6529,101.95,101.89,57.46732271]
[1646240037188,14.7289,101.95,101.89,57.46732271]
[1646240038186,3.924,101.96,101.89,57.46732271]
[1646240038388,48.2998,101.97,101.89,57.71732271]
[1646240039389,48.2998,101.97,101.89,72.44122271]
[1646240039791,48.2998,101.97,101.89,84.17122271]
[1646240040589,63.0259,101.97,101.89,72.19122271]
[1646240040790,48.2998,101.97,101.89,57.46732271]
[1646240041590,48.2998,101.97,101.89,57.71732271]
[1646240042191,48.2998,101.97,101.89,57.46732271]
[1646240042394,49.99390744,101.97,101.89,57.46732271]
[1646240043093,14.7275,101.96,101.89,57.71732271]
[1646240043393,49.99390744,101.97,101.85,33.2666]
[1646240043593,3.924,101.96,101.85,15.654]
[1646240043796,5.61810744,101.96,101.85,15.654]
[1646240043993,1.69410744,101.96,101.85,15.654]
[1646240044394,1.69410744,101.96,101.86,44.94025258]
[1646240044595,5.61810744,101.96,101.86,44.94025258]
[1646240044998,14.7304,101.94,101.86,118.33865258]
[1646240045596,14.7304,101.94,101.86,44.94025258]
[1646240045898,3.924,101.93,101.85,3.924]
[1646240046098,14.7348,101.91,101.85,3.924]
[1646240047102,14.7348,101.91,101.85,51.22587541]
[1646240047500,14.7348,101.91,101.85,3.924]
[1646240048300,29.695,101.91,101.85,3.924]
[1646240049000,31.38910744,101.91,101.85,3.924]
[1646240050201,14.7361,101.9,101.85,3.924]
[1646240051304,14.7361,101.9,101.81,83.96881242]
[1646240051502,38.9597,101.9,101.81,59.23761242]
[1646240051702,14.7376,101.89,101.8,26.4673]
[1646240051903,24.7459,101.89,101.8,14.7373]
[1646240052104,26.44000744,101.89,101.8,14.7373]
[1646240052305,52.4507999,101.89,101.78,31.4699]
[1646240052507,52.4507999,101.89,101.78,19.7399]
[1646240052704,52.4507999,101.89,101.79,60.82307005]
[1646240053004,14.7405,101.87,101.79,60.82307005]
[1646240053610,14.7405,101.87,101.79,61.07307005]
[1646240054010,14.7405,101.87,101.79,75.81247005]
[1646240056520,18.6685,101.87,101.79,75.81247005]
[1646240056717,18.6685,101.87,101.79,61.07307005]
[1646240056917,18.6685,101.87,101.77,14.7413]
[1646240056918,1.69410744,101.86,101.77,14.7413]
[1646240057120,14.7439,101.85,101.75,60.1692]
[1646240057318,18.6719,101.85,101.75,48.4392]
[1646240057522,20.36600744,101.85,101.75,48.4392]
[1646240057719,5.62210744,101.85,101.75,63.1834]
[1646240057920,29.77350744,101.85,101.76,52.34208557]
[1646240058420,24.1514,101.85,101.76,52.59208557]
[1646240059825,47.9685258,101.85,101.76,52.59208557]
[1646240060028,14.745,101.84,101.76,52.59208557]
[1646240060826,14.745,101.84,101.76,52.34208557]
[1646240061027,16.43910744,101.84,101.76,52.34208557]
[1646240061628,1.69410744,101.84,101.76,52.34208557]
[1646240061827,38.889,101.85,101.76,150.36208557]
[1646240062027,38.889,101.85,101.76,162.09208557]
[1646240062227,3.928,101.84,101.76,162.34208557]
[1646240062630,38.889,101.85,101.76,162.34208557]
[1646240062928,14.7376,101.85,101.78,64.04038508]
[1646240063127,14.7376,101.85,101.78,64.29038508]
[1646240063527,38.5547258,101.85,101.78,49.55008508]
[1646240064128,40.24883324,101.85,101.78,49.55008508]
[1646240064330,38.5547258,101.85,101.78,49.55008508]
[1646240064529,28.97900744,101.87,101.78,162.31058508]
[1646240064731,27.2849,101.87,101.78,174.04058508]
[1646240065329,23.3569,101.87,101.78,174.04058508]
[1646240065529,23.3569,101.87,101.78,76.02058508]
[1646240066632,47.1740258,101.87,101.78,76.02058508]
[1646240066830,47.1740258,101.87,101.78,173.79058508]
[1646240068231,47.1740258,101.87,101.78,174.04058508]
[1646240068631,23.8171258,101.87,101.78,232.71058508]
[1646240068832,3.928,101.88,101.78,232.71058508]
[1646240069132,3.928,101.89,101.81,43.53469895]
[1646240069334,3.928,101.89,101.83,59.26957254]
[1646240069532,3.928,101.89,101.83,59.51957254]
[1646240070132,11.732,101.9,101.83,59.51957254]
[1646240070535,35.5491258,101.9,101.83,59.51957254]
[1646240072235,27.7431258,101.9,101.83,0.25]
[1646240072535,29.43723324,101.9,101.8,14.737]
[1646240072734,23.0466,101.89,101.8,14.737]
[1646240073134,23.8171258,101.88,101.8,14.737]
[1646240073335,38.5562258,101.88,101.79,59.99147668]
[1646240073535,40.25033324,101.88,101.79,59.99147668]
[1646240073937,64.11133324,101.88,101.79,60.24147668]
[1646240074535,23.8171258,101.87,101.79,60.24147668]
[1646240074938,25.51123324,101.87,101.79,60.24147668]
[1646240075138,49.67053324,101.87,101.79,60.24147668]
[1646240076539,47.9764258,101.87,101.79,74.98077668]
[1646240076741,24.1593,101.87,101.79,74.98077668]
[1646240076941,24.1593,101.87,101.79,86.71077668]
[1646240077944,23.861,101.88,101.79,145.38077668]
[1646240078547,23.861,101.88,101.79,243.40077668]
[1646240078744,26.75327803,101.91,101.82,112.7515]
[1646240078944,23.8171258,101.91,101.82,26.7115]
[1646240079143,1.69410744,101.89,101.78,2.54904003]
[1646240079345,1.69410744,101.89,101.77,81.4149]
[1646240079545,39.79215778,101.91,101.79,58.67]
[1646240079744,3.927,101.9,101.8,11.73]
[1646240079945,43.71915778,101.91,101.8,11.73]
[1646240080145,16.43180744,101.89,101.81,48.03648939]
[1646240080345,63.00773324,101.89,101.81,48.03648939]
[1646240080947,63.00773324,101.89,101.8,14.7371]
[1646240081148,44.17713324,101.88,101.8,11.98]
[1646240081349,29.43823324,101.88,101.8,0.25]
[1646240081546,29.43823324,101.88,101.78,14.9901]
[1646240081547,50.12813324,101.87,101.78,14.9901]
[1646240082163,64.86863324,101.87,101.79,49.31322885]
[1646240082361,64.86863324,101.87,101.79,49.56322885]
[1646240083162,64.86863324,101.87,101.79,64.30292885]
[1646240083560,63.1745258,101.87,101.79,64.30292885]
[1646240084163,64.86863324,101.87,101.79,64.30292885]
[1646240084564,23.8171258,101.86,101.79,64.30292885]
[1646240085463,23.8171258,101.86,101.79,14.9897]
[1646240085662,25.51123324,101.86,101.79,0.25]
[1646240085896,40.25333324,101.86,101.77,37.7365]
[1646240086085,44.18133324,101.86,101.77,37.7365]
[1646240086486,24.4459,101.85,101.77,57.85983215]
[1646240087186,1.69410744,101.84,101.77,57.85983215]
[1646240088287,1.69410744,101.84,101.77,14.9916]
[1646240088492,1.69410744,101.84,101.76,3.927]
[1646240088787,25.51123324,101.84,101.76,3.927]
[1646240089190,1.69410744,101.83,101.76,3.927]
[1646240089787,1.69410744,101.83,101.76,54.60119137]
[1646240089988,16.44040744,101.83,101.76,54.85119137]
[1646240090189,41.16810744,101.83,101.76,54.85119137]
[1646240090588,1.69410744,101.82,101.76,54.85119137]
[1646240090994,63.2911258,101.83,101.76,54.85119137]
[1646240091290,39.474,101.83,101.76,54.85119137]
[1646240091493,41.16810744,101.83,101.76,54.85119137]
[1646240091892,39.474,101.83,101.76,54.85119137]
[1646240093293,39.474,101.83,101.76,54.60119137]
[1646240093892,24.7277,101.83,101.76,54.85119137]
[1646240095695,24.7277,101.83,101.76,54.60119137]
[1646240096098,24.7277,101.83,101.76,54.85119137]
[1646240096297,25.51123324,101.85,101.76,54.85119137]
[1646240096498,22.5593,101.85,101.76,54.85119137]
[1646240096696,3.928,101.86,101.79,14.7397]
[1646240096898,38.78920744,101.87,101.8,47.07133603]
[1646240097298,62.60633324,101.87,101.8,46.07133603]
[1646240097897,77.34713324,101.87,101.8,46.07133603]
[1646240098097,77.34713324,101.87,101.79,14.7397]
[1646240098298,77.34713324,101.87,101.77,39.6674]
[1646240098601,3.928,101.86,101.77,39.9174]
[1646240098999,40.24673307,101.85,101.77,39.9174]
[1646240099299,25.50253307,101.84,101.77,72.89622913]
[1646240099498,25.50253307,101.84,101.77,58.15442913]
[1646240100300,1.68540727,101.83,101.77,58.15442913]
[1646240100498,1.68540727,101.83,101.76,3.927]
[1646240100700,49.50093307,101.83,101.76,3.927]
[1646240101108,1.68540727,101.82,101.76,3.927]
[1646240101702,1.68540727,101.82,101.77,53.00456911]
[1646240102502,66.4904258,101.83,101.77,53.00456911]
[1646240102706,23.9984,101.83,101.77,67.74706911]
[1646240102904,1.68540727,101.84,101.77,14.7425]
[1646240103103,1.68540727,101.84,101.73,2.54904003]
[1646240103104,1.68540727,101.82,101.73,2.54904003]
[1646240103303,43.35891404,101.82,101.72,5.0]
[1646240103602,43.35891404,101.82,101.69,0.97628402]
[1646240103603,49.20089519,101.81,101.69,0.97628402]
[1646240103805,11.73,101.8,101.69,0.97628402]
[1646240104015,79.71270837,101.8,101.69,0.97628402]
[1646240104304,29.26382718,101.79,101.69,0.97628402]
[1646240104525,14.754,101.78,101.7,67.80818305]
[1646240104704,65.86881991,101.78,101.7,68.05818305]
[1646240105104,38.2904,101.78,101.7,67.80818305]
[1646240105904,23.5364,101.78,101.7,67.80818305]
[1646240106506,23.5364,101.78,101.7,68.05818305]
[1646240106705,23.5364,101.78,101.7,67.80818305]
[1646240107707,23.5364,101.78,101.7,72.80818305]
[1646240108105,5.61640727,101.81,101.7,229.74818305]
[1646240108304,25.00324224,101.82,101.7,241.47818305]
[1646240108503,5.0,101.84,101.74,156.69]
[1646240108705,5.0,101.84,101.75,199.56177597]
[1646240108905,5.0,101.84,101.75,199.81177597]
[1646240109108,5.0,101.84,101.75,211.54177597]
[1646240109506,27.7419,101.86,101.75,211.54177597]
[1646240109705,23.8139,101.86,101.75,226.28227597]
[1646240110107,23.8139,101.86,101.77,98.02]
[1646240110305,48.81714224,101.86,101.78,56.88275913]
[1646240110507,48.81714224,101.86,101.78,57.13275913]
[1646240111006,48.81714224,101.86,101.79,14.7391]
[1646240111207,48.81714224,101.86,101.8,46.15698256]
[1646240111408,48.81714224,101.86,101.8,46.40698256]
[1646240111613,52.74514224,101.86,101.8,46.40698256]
[1646240111807,52.74514224,101.86,101.76,5.0]
[1646240112027,54.43054951,101.86,101.72,15.658]
[1646240112208,67.72566877,101.86,101.73,6.0]
[1646240112507,67.72566877,101.86,101.72,6.0]
[1646240112709,67.72566877,101.86,101.71,16.73]
[1646240112912,66.16054951,101.86,101.73,156.69]
[1646240113107,80.90354951,101.86,101.75,171.4346]
[1646240113312,65.24554951,101.86,101.76,43.51474667]
[1646240114708,65.24554951,101.86,101.76,141.53474667]
[1646240114908,63.56014224,101.86,101.76,141.78474667]
[1646240115808,48.81714224,101.86,101.76,190.92014667]
[1646240116010,48.81714224,101.86,101.76,194.84814667]
[1646240116209,48.81714224,101.86,101.76,253.51814667]
[1646240120035,50.50254951,101.86,101.76,253.51814667]
[1646240120236,50.50254951,101.86,101.76,249.59014667]
[1646240120635,50.50254951,101.86,101.76,249.34014667]
[1646240121935,48.81714224,101.86,101.76,249.59014667]
[1646240122138,23.8139,101.86,101.78,156.69]
[1646240122336,23.9372,101.87,101.8,14.7368]
[1646240122536,23.9372,101.87,101.81,50.54802033]
[1646240122736,23.9372,101.87,101.81,50.79802033]
[1646240123336,50.37104951,101.87,101.81,14.9869]
[1646240123536,50.37104951,101.87,101.81,0.25]
[1646240123936,50.37104951,101.87,101.78,49.3724]
[1646240124136,50.37104951,101.87,101.76,119.534]
[1646240124338,50.37104951,101.87,101.77,59.24929969]
[1646240124339,24.4646,101.86,101.77,59.24929969]
[1646240124737,49.21304224,101.86,101.78,14.7403]
[1646240124937,49.21304224,101.86,101.79,45.55249779]
[1646240125540,24.4646,101.86,101.79,45.80249779]
[1646240126042,24.4646,101.86,101.79,143.82249779]
[1646240127044,23.9372,101.87,101.79,217.23229779]
[1646240127241,24.74844224,101.88,101.79,217.23229779]
[1646240127442,24.74844224,101.88,101.81,156.69]
[1646240127642,28.67644224,101.9,101.82,59.30113384]
[1646240127847,28.67644224,101.9,101.82,157.57113384]
[1646240128049,24.74844224,101.9,101.82,157.57113384]
[1646240128447,24.74844224,101.9,101.82,230.97493384]
[1646240128848,22.861,101.91,101.82,74.28493384]
[1646240129047,47.13824147,101.91,101.82,74.28493384]
[1646240129247,48.82364874,101.91,101.82,74.28493384]
[1646240130248,48.82364874,101.91,101.82,132.95493384]
[1646240130549,22.861,101.91,101.82,132.95493384]
[1646240130748,22.861,101.91,101.82,144.68493384]
[1646240130949,22.861,101.91,101.82,242.70493384]
[1646240132148,22.861,101.91,101.85,52.1019746]
[1646240132349,22.861,101.91,101.85,67.0819746]
[1646240136055,24.54640727,101.91,101.85,67.0819746]
[1646240137754,24.54640727,101.91,101.83,14.733]
[1646240137954,24.54640727,101.91,101.83,14.983]
[1646240138761,24.54640727,101.91,101.84,50.82546358]
[1646240138957,24.54640727,101.91,101.84,51.07546358]
[1646240139158,24.54640727,101.91,101.84,65.80786358]
[1646240139360,22.861,101.91,101.84,65.80786358]
[1646240141559,24.54640727,101.91,101.82,14.7345]
[1646240141760,14.7384,101.89,101.79,73.2493]
[1646240142061,24.5584,101.88,101.79,73.2493]
[1646240142459,24.5584,101.88,101.8,50.00858817]
[1646240142960,32.6353154,101.91,101.8,221.43608817]
[1646240143160,24.587,101.9,101.8,221.68608817]
[1646240144061,24.587,101.9,101.8,123.66608817]
[1646240144262,26.27240727,101.9,101.8,64.99608817]
[1646240146261,41.00900727,101.9,101.8,64.99608817]
[1646240146664,27.67778102,101.9,101.8,64.74608817]
[1646240146863,3.927,101.89,101.8,64.74608817]
[1646240147264,22.9667,101.88,101.8,64.74608817]
[1646240148264,22.9667,101.88,101.8,64.99608817]
[1646240148664,22.9667,101.88,101.8,221.68608817]
[1646240148863,22.9667,101.88,101.8,123.66608817]
[1646240150075,22.9667,101.88,101.8,221.68608817]
[1646240151571,22.9667,101.88,101.8,123.66608817]
[1646240153295,5.61240727,101.91,101.8,221.68608817]
[1646240153500,24.5015,101.91,101.82,156.69]
[1646240153699,24.5015,101.91,101.83,222.011015]